{"text_format":"3","workbook":"xlsx","n_sheets":4,"sheets":["Atskaites punkti","Ceļvedis","Par","Diagrammas dati"],"not_rendered":{"charts":1,"defined_names":2},"read":"whole","date_system":"1900"}

{"sheet":"Atskaites punkti","index":0,"n_rows":27,"n_cols":5,"rows_kept":27}
["Izveidojiet ceļvedis, ievadot svarīgos atskaites punktus un darbības šajā darblapā.\nŠīs darblapas nosaukums ir norādīts šūnā C1. \nInformācija par šīs darblapas lietošanu, tostarp norādījumi ekrāna lasītājiem, ir pieejama darblapā Par.\nTurpiniet naviģēt uz leju kolonnā A, lai skatītu papildu norādījumus.",null,"Atskaites punkti"]
["Tabulu virsraksti ir norādīti C2–E2 šūnā. Izmantojiet kārtot un filtrēt opcijas, lai kārtotu vai atrastu konkrētus ierakstus.\nIevadiet ceļvedi ar datumiem un iestatiet pozīciju atskaites punkti iedalīšanai tabulā, sākot ar šūnu C3.\nKolonna B ir paslēpta. Diagramma ģenerēta no šiem datiem, izmantojot ritjoslu, lai skatītu laika grafika fragmentus. Kolonna B sniedz iespēju noteikt, kurus atskaites punkti iedalīt, kad ritjosla tiek palielināta. \nBrīdinājums. Kolonnas B satura dzēšana vai modificēšana var izjaukt šajā darbgrāmatā iebūvētā iedalījuma integritāti.","Nr.","Pozīcija","Datums","Atskaites punkts"]
["Ievadiet pozīcija datuma un atskaites punkta iedalīšanai šūnā C1. Ievadiet pozitīvu skaitli no 1 līdz 3, lai atskaites punktu iedalītu virs laika grafika. Ievadiet negatīvu skaitli no -1 līdz -3, lai atskaites punktu iedalītu zem laika grafika.\nIevadiet datums un atskaites punkts kolonnā D un E tabulā.\nAtkārtojiet šo modeli katrai rindai tabulas labajā pusē.\nDatu paraugi ir sniegti 3.–26. rindā. Modificējiet vai dzēsiet satura paraugu, lai izveidotu pats savu ceļvedi.\nDodieties uz šūnu A27, lai saņemtu nākamos norādījumus.",{"$f":"ROW($A1)","v":1},1,{"$f":"TODAY()","v":"2018-06-29"},"Sākums"]
[null,{"$f":"ROW($A2)","v":2},-2,{"$f":"D3+10","v":"2018-07-09"},"Problēmu analīze\n1. darbība"]
[null,3,1,{"$f":"D4+20","v":"2018-07-29"},"Uzņēmuma lietas izstrāde\n1. darbība\n2. darbība"]
[null,4,-1,{"$f":"D5+30","v":"2018-08-28"},"Pārskatīt prezentāciju"]
[null,5,{"v":-0.5,"d":"-1"},{"$f":"D6+40","v":"2018-10-07"},"Exec starts\n1. darbība\n2. darbība"]
[null,6,2,{"$f":"D7+50","v":"2018-11-26"},"Exec līdzinājums\n1. darbība\n2. darbība\n3. darbība"]
[null,7,{"v":0.5,"d":"1"},{"$f":"D8+60","v":"2019-01-25"},"Ieinteresēto pušu izpirkšana"]
[null,8,-1,{"$f":"D9+70","v":"2019-04-05"},"Resursu atlase"]
[null,9,{"v":0.5,"d":"1"},{"$f":"D10+80","v":"2019-06-24"},"Komandas izveide\n1. darbība "]
[null,10,-2,{"$f":"D11+90","v":"2019-09-22"},"Komandas starts\n1. darbība \n2. darbība\n3. darbība\n4. darbība"]
[null,11,3,{"$f":"D12+100","v":"2019-12-31"},"Sākt datu apkopošanu"]
[null,12,-1,{"$f":"D13+90","v":"2020-03-30"},"Datu analīze"]
[null,13,1,{"$f":"D14+80","v":"2020-06-18"},"Noformējums"]
[null,14,1,{"$f":"D15+70","v":"2020-08-27"},"Koncepcijas pierādījums"]
[null,15,-3,{"$f":"D16+60","v":"2020-10-26"},"Pārbaude un analīze"]
[null,16,-2,{"$f":"D17+50","v":"2020-12-15"},"Pārbūvēt"]
[null,17,2,{"$f":"D18+40","v":"2021-01-24"},"Pārveidot"]
[null,18,-1,{"$f":"D19+30","v":"2021-02-23"},"Pārbaude un analīze"]
[null,19,1,{"$f":"D20+20","v":"2021-03-15"},"Pārbūvēt"]
[null,20,-3,{"$f":"D21+10","v":"2021-03-25"},"Pārveidot"]
[null,21,2,{"$f":"D22+20","v":"2021-04-14"},"Gala pārbaude"]
[null,22,1,{"$f":"D23+30","v":"2021-05-14"},"Beta tests"]
[null,23,-3,{"$f":"D24+40","v":"2021-06-23"},"Pārskatīšana"]
[null,24,-2,{"$f":"D25+50","v":"2021-08-12"},"Izlaišana mārketingam"]
["Lai pievienotu papildu rindas tabulai Ceļveža atskaites punkti, vienkārši ievietojiet jaunu rindu virs šīs.\nŠajā darblapā nav papildu norādījumu.",null,"Lai pievienotu citus atskaites punktus, ievietojiet jaunas rindas virs šīs."]

{"sheet":"Ceļvedis","index":1,"n_rows":3,"n_cols":4,"rows_kept":3}
["Diagramma, kurā redzami atskaites punkti no darblapas Atskaites punkti, ir šajā darblapā. \nGadi ir norādīti šūnās B2, C2 un D2, un tiem ir lietots stils Virsraksts 3.\nVienlaikus tiek iedalīti 10 atskaites punkti. \nIzmantojiet ritjoslu šūnās B4–D4, lai naviģētu ceļvedī.\nLaika grafika gadi ir šūnās B3–D3.\nŠajā darblapā nav papildu norādījumu."]
[]
[null,{"$f":"'Diagrammas dati'!B20","v":2018},{"$f":"'Diagrammas dati'!B21","v":""},{"$f":"'Diagrammas dati'!B22","v":2019}]

{"sheet":"Par","index":2,"n_rows":5,"n_cols":1,"rows_kept":5}
["Par šo darbgrāmatu"]
["Norādījumi ekrāna lasītājiem"]
["Šajā darbgrāmatā ir 4 darblapas. \n\nAtskaites punkti\nCeļvedis\nPar\nDiagrammas dati (slēpti)\n\nNorādījumi katrā darblapā ir sniegti kolonnā A, sākot no šūnas A1. Tie ir rakstīti kā slēpts teksts. Katrā solī ir aprakstīta attiecīgās rindas informācija. Katrs nākamais solis ir aprakstīts šūnā A2, A3 u.t.t., ja vien nav skaidri norādīts citādi. Piemēram, var būt sniegti norādījumi par nākamo darbību “Pārejiet uz šūnu A6”. \n\nSlēptais teksts netiek drukāts.\n\nLai jebkurā darblapā noņemtu šos norādījumus, vienkārši izdzēsiet kolonnu A.\n"]
["Šajā ceļvedī tiek izmantotas pozīcijas, lai iedalītu atskaites punktus un darbības. Pozīcijas var izmantot, lai pievienotu svarīgumu atskaites punktam vai darbībai. Vienkārši pielāgojiet vērtības atbilstoši jūsu svarīguma preferencēm. Piemēram, 3. atskaites punktam/darbībai var būt lielāks svarīgums nekā 2. atskaites punktam/darbībai. Lai to norādītu diagrammā, vienkārši padariet pozīcijas vērtību augstāku 3. atskaites punktam/darbībai nekā 2. atskaites punktam/darbībai.  \n"]
["Šis ir pēdējais norādījums šajā darblapā."]

{"sheet":"Diagrammas dati","index":3,"n_rows":26,"n_cols":4,"rows_kept":26,"hidden":true}
["Dinamiskā iedalījuma izveides dati ir šajā darblapā. Neizdzēsiet šo darblapu.\nDzēšot šo darblapu, var tikt apdraudēta darbgrāmatas dinamiskā iespēja.","Neizdzēsiet šo darblapu."]
["Tabulas virsraksts ir šūnā B2.","Dinamiskās diagrammas saturs"]
["Tabulu virsraksti ir šūnās B3–D3. \nŠī tabula tiek automātiski atjaunināta, ņemot vērā darblapā Atskaites punkti ievadīto saturu.\nBrīdinājums. Modificējot vai dzēšot saturu šajā tabulā, var tikt apdraudēta diagrammas Ceļvedis dinamiskās atjaunināšanas iespēja darblapā Ceļvedis.\nPārejiet uz šūnu A15, lai skatītu nākamos norādījumus.","Datums","Notikumi","Pozīcija"]
[null,{"$f":"IFERROR(IF(LEN('Atskaites punkti'!D3)=0,\"\",INDEX(Ceļveža_atskaites_punkti[],'Atskaites punkti'!$B3+$B$17,3)),\"\")","v":"2018-06-29"},{"$f":"IFERROR(IF(LEN('Atskaites punkti'!E3)=0,\"\",INDEX(Ceļveža_atskaites_punkti[],'Atskaites punkti'!$B3+$B$17,4)),\"\")","v":"Sākums"},{"$f":"IFERROR(INDEX(Ceļveža_atskaites_punkti[],'Atskaites punkti'!$B3+$B$17,2),\"\")","v":1}]
[null,{"$f":"IFERROR(IF(LEN('Atskaites punkti'!D4)=0,\"\",INDEX(Ceļveža_atskaites_punkti[],'Atskaites punkti'!$B4+$B$17,3)),\"\")","v":"2018-07-09"},{"$f":"IFERROR(IF(LEN('Atskaites punkti'!E4)=0,\"\",INDEX(Ceļveža_atskaites_punkti[],'Atskaites punkti'!$B4+$B$17,4)),\"\")","v":"Problēmu analīze\n1. darbība"},{"$f":"IFERROR(INDEX(Ceļveža_atskaites_punkti[],'Atskaites punkti'!$B4+$B$17,2),\"\")","v":-2}]
[null,{"$f":"IFERROR(IF(LEN('Atskaites punkti'!D5)=0,\"\",INDEX(Ceļveža_atskaites_punkti[],'Atskaites punkti'!$B5+$B$17,3)),\"\")","v":"2018-07-29"},{"$f":"IFERROR(IF(LEN('Atskaites punkti'!E5)=0,\"\",INDEX(Ceļveža_atskaites_punkti[],'Atskaites punkti'!$B5+$B$17,4)),\"\")","v":"Uzņēmuma lietas izstrāde\n1. darbība\n2. darbība"},{"$f":"IFERROR(INDEX(Ceļveža_atskaites_punkti[],'Atskaites punkti'!$B5+$B$17,2),\"\")","v":1}]
[null,{"$f":"IFERROR(IF(LEN('Atskaites punkti'!D6)=0,\"\",INDEX(Ceļveža_atskaites_punkti[],'Atskaites punkti'!$B6+$B$17,3)),\"\")","v":"2018-08-28"},{"$f":"IFERROR(IF(LEN('Atskaites punkti'!E6)=0,\"\",INDEX(Ceļveža_atskaites_punkti[],'Atskaites punkti'!$B6+$B$17,4)),\"\")","v":"Pārskatīt prezentāciju"},{"$f":"IFERROR(INDEX(Ceļveža_atskaites_punkti[],'Atskaites punkti'!$B6+$B$17,2),\"\")","v":-1}]
[null,{"$f":"IFERROR(IF(LEN('Atskaites punkti'!D7)=0,\"\",INDEX(Ceļveža_atskaites_punkti[],'Atskaites punkti'!$B7+$B$17,3)),\"\")","v":"2018-10-07"},{"$f":"IFERROR(IF(LEN('Atskaites punkti'!E7)=0,\"\",INDEX(Ceļveža_atskaites_punkti[],'Atskaites punkti'!$B7+$B$17,4)),\"\")","v":"Exec starts\n1. darbība\n2. darbība"},{"$f":"IFERROR(INDEX(Ceļveža_atskaites_punkti[],'Atskaites punkti'!$B7+$B$17,2),\"\")","v":-0.5}]
[null,{"$f":"IFERROR(IF(LEN('Atskaites punkti'!D8)=0,\"\",INDEX(Ceļveža_atskaites_punkti[],'Atskaites punkti'!$B8+$B$17,3)),\"\")","v":"2018-11-26"},{"$f":"IFERROR(IF(LEN('Atskaites punkti'!E8)=0,\"\",INDEX(Ceļveža_atskaites_punkti[],'Atskaites punkti'!$B8+$B$17,4)),\"\")","v":"Exec līdzinājums\n1. darbība\n2. darbība\n3. darbība"},{"$f":"IFERROR(INDEX(Ceļveža_atskaites_punkti[],'Atskaites punkti'!$B8+$B$17,2),\"\")","v":2}]
[null,{"$f":"IFERROR(IF(LEN('Atskaites punkti'!D9)=0,\"\",INDEX(Ceļveža_atskaites_punkti[],'Atskaites punkti'!$B9+$B$17,3)),\"\")","v":"2019-01-25"},{"$f":"IFERROR(IF(LEN('Atskaites punkti'!E9)=0,\"\",INDEX(Ceļveža_atskaites_punkti[],'Atskaites punkti'!$B9+$B$17,4)),\"\")","v":"Ieinteresēto pušu izpirkšana"},{"$f":"IFERROR(INDEX(Ceļveža_atskaites_punkti[],'Atskaites punkti'!$B9+$B$17,2),\"\")","v":0.5}]
[null,{"$f":"IFERROR(IF(LEN('Atskaites punkti'!D10)=0,\"\",INDEX(Ceļveža_atskaites_punkti[],'Atskaites punkti'!$B10+$B$17,3)),\"\")","v":"2019-04-05"},{"$f":"IFERROR(IF(LEN('Atskaites punkti'!E10)=0,\"\",INDEX(Ceļveža_atskaites_punkti[],'Atskaites punkti'!$B10+$B$17,4)),\"\")","v":"Resursu atlase"},{"$f":"IFERROR(INDEX(Ceļveža_atskaites_punkti[],'Atskaites punkti'!$B10+$B$17,2),\"\")","v":-1}]
[null,{"$f":"IFERROR(IF(LEN('Atskaites punkti'!D11)=0,\"\",INDEX(Ceļveža_atskaites_punkti[],'Atskaites punkti'!$B11+$B$17,3)),\"\")","v":"2019-06-24"},{"$f":"IFERROR(IF(LEN('Atskaites punkti'!E11)=0,\"\",INDEX(Ceļveža_atskaites_punkti[],'Atskaites punkti'!$B11+$B$17,4)),\"\")","v":"Komandas izveide\n1. darbība "},{"$f":"IFERROR(INDEX(Ceļveža_atskaites_punkti[],'Atskaites punkti'!$B11+$B$17,2),\"\")","v":0.5}]
[null,{"$f":"IFERROR(IF(LEN('Atskaites punkti'!D12)=0,\"\",INDEX(Ceļveža_atskaites_punkti[],'Atskaites punkti'!$B12+$B$17,3)),\"\")","v":"2019-09-22"},{"$f":"IFERROR(IF(LEN('Atskaites punkti'!E12)=0,\"\",INDEX(Ceļveža_atskaites_punkti[],'Atskaites punkti'!$B12+$B$17,4)),\"\")","v":"Komandas starts\n1. darbība \n2. darbība\n3. darbība\n4. darbība"},{"$f":"IFERROR(INDEX(Ceļveža_atskaites_punkti[],'Atskaites punkti'!$B12+$B$17,2),\"\")","v":-2}]
[]
["Iespēja ritināt ceļvedi tiek nodrošināta, izmantojot inkrementālo vērtību. Šīs iespējas virsraksts ir šūnā B15.\nTabula ar galveni un atsevišķu vērtību ir šūnās B16–B17.\nPārejiet uz šūnu A19, lai skatītu nākamos norādījumus.","Ritināšana iespēja"]
[null,"Rindas pieaugums"]
[null,0]
[]
["Diagramma Ceļvedis sadala gadus laika grafikam. Lai to izdarītu, gadi ir jātver no atskaites punkts saraksta. \nŠīs sadaļas virsraksts ir “Gads” šūnā B19. \nGada vērtības tiek ģenerētas automātiski šūnās C20–C22.\nBrīdinājums. Dzēšot vai modificējot šos gadus, var tikt mainīta diagrammas Ceļvedis iedalīšanas precizitāte.\nDodieties uz šūnu A24, lai saņemtu nākamos norādījumus.","Gads"]
[null,{"$f":"IFERROR(YEAR(B4),\"\")","v":2018},"<-- gads ceļveža sākuma pozīcijai"]
[null,{"$f":"IFERROR(IF(YEAR($B$9)=$B$20,\"\",YEAR($B$9)),\"\")","v":""},"<-- gads ceļveža vidus pozīcijai. Ņemiet vērā, ka tas var būt tukšs, ja gads sakrīt ar ceļveža sākuma pozīciju"]
[null,{"$f":"IFERROR(IF(YEAR($B$13)=$B$20,\"\",YEAR($B$13)),\"\")","v":2019},"<-- gads ceļveža pēdējai pozīcijai. Ņemiet vērā, ka tas var būt tukšs, ja gads sakrīt ar ceļveža sākuma pozīciju"]
[]
["Gredzenu marķieri diagrammā Ceļvedis satur datumus no dinamiskās diagrammas satura šajā darblapā. Datumi ir Pirmais datums šūnā C24, Vidējais datums šūnā C25 un pēdējais datums šūnā C26.\nŠajā darblapā nav papildu norādījumu.","Pirmais datums",{"$f":"B4","v":"2018-06-29"}]
[null,"Vidējais datums",{"$f":"B9","v":"2018-11-26"}]
[null,"Pēdējais datums",{"$f":"B13","v":"2019-09-22"}]